bitfinex/quotes_ETHUSD_20251008
["timestamp","ask_amount","ask_price","bid_price","bid_amount"]
[1759891268774,2.22811803,4488.1,4487.9,2.517]
[1759891269477,2.22816399,4488.0,4487.9,2.517]
[1759891270681,2.22812258,4488.1,4487.9,2.517]
[1759891271483,0.20828779,4488.0,4487.9,2.517]
[1759891271688,2.22812258,4488.1,4487.9,2.517]
[1759891271890,2.22801506,4488.3,4487.9,2.517]
[1759891272091,2.22816399,4488.0,4487.9,2.517]
[1759891272305,2.22845384,4487.5,4487.4,2.516]
[1759891272513,2.22851157,4487.3,4487.2,0.66953749]
[1759891272801,42.22856124,4487.2,4487.0,2.517]
[1759891273089,32.22856124,4487.2,4486.5,0.66953749]
[1759891273276,35.29455153,4487.2,4486.5,0.645]
[1759891274486,34.83655153,4487.2,4486.5,0.645]
[1759891275158,37.45920233,4487.2,4486.5,0.645]
[1759891275786,35.23064109,4487.2,4486.5,0.645]
[1759891275986,0.20826609,4487.2,4486.7,0.4382]
[1759891276186,0.20826609,4487.2,4486.5,0.645]
[1759891276187,3.102375,4487.8,4487.1,0.4392]
[1759891276387,2.22837154,4487.6,4487.1,0.4392]
[1759891276591,3.102375,4487.8,4487.1,0.7059955]
[1759891276758,0.1112,4488.1,4487.4,0.1112]
[1759891276960,0.1112,4488.1,4487.5,0.46048412]
[1759891277160,0.31924691,4488.1,4487.5,0.46048412]
[1759891278173,0.1112,4488.1,4487.5,0.46048412]
[1759891278489,0.1112,4488.1,4487.5,1.05924934]
[1759891278490,0.31924333,4488.1,4487.5,1.05924934]
[1759891278995,2.54736652,4488.1,4487.5,1.05924934]
[1759891279295,2.54736652,4488.1,4487.6,0.4382]
[1759891279296,0.20806905,4488.0,4487.6,0.4382]
[1759891279464,0.20806905,4488.0,4487.5,0.62104934]
[1759891279465,0.1112,4488.1,4487.7,0.46048312]
[1759891279661,0.31926909,4488.1,4487.7,0.46048312]
[1759891279858,0.31926909,4488.1,4487.8,0.4382]
[1759891280190,0.31926909,4488.1,4487.9,0.02228213]
[1759891280893,0.31926909,4488.1,4487.8,0.4382]
[1759891281200,0.1112,4488.1,4487.8,0.4382]
[1759891281779,0.31929087,4488.1,4487.8,0.4382]
[1759891282097,2.22841225,4487.5,4487.4,0.1112]
[1759891282297,2.8622109,4487.1,4486.1,0.01]
[1759891282615,0.6336,4486.2,4484.3,0.018]
[1759891282767,5.33192998,4485.2,4484.3,0.018]
[1759891283188,5.33192998,4485.2,4484.4,0.4672]
[1759891283496,5.42126045,4485.2,4484.4,0.4672]
[1759891284008,5.42126045,4485.2,4484.5,0.02229902]
[1759891285201,2.31888545,4485.2,4484.5,0.02229902]
[1759891285418,2.22985327,4484.6,4484.1,0.01]
[1759891285708,2.22985717,4484.6,4484.1,0.01]
[1759891285890,2.22990375,4484.5,4484.2,0.48950052]
[1759891286064,2.22990375,4484.5,4484.3,0.4672]
[1759891286268,2.230005,4484.3,4484.1,0.01]
[1759891286565,2.23005218,4484.2,4484.1,0.01]
[1759891286773,2.25235136,4484.2,4484.1,0.01]
[1759891287287,2.71955136,4484.2,4484.1,0.01]
[1759891288307,37.58805136,4484.2,4484.1,0.01]
[1759891288487,37.56575218,4484.2,4484.1,0.01]
[1759891290297,19.10225218,4484.2,4484.1,0.01]
[1759891291274,34.61725218,4484.2,4484.1,0.01]
[1759891291905,35.04775218,4484.2,4484.1,0.01]
[1759891292396,33.12775218,4484.2,4484.1,0.01]
[1759891293275,32.66055218,4484.2,4484.1,0.01]
[1759891295416,32.23005218,4484.2,4484.1,0.01]
[1759891295593,21.63105218,4484.2,4484.1,0.01]
[1759891295789,20.87505218,4484.2,4484.1,0.01]
[1759891295984,16.20305218,4484.2,4484.1,0.01]
[1759891296399,32.23005218,4484.2,4484.1,0.01]
[1759891296583,16.98105218,4484.2,4484.1,0.01]
[1759891297417,32.23005218,4484.2,4484.1,0.01]
[1759891297792,30.0,4484.2,4484.1,0.01]
[1759891297999,0.1112,4484.3,4484.1,0.4772]
[1759891298201,2.22991738,4484.5,4484.2,0.4672]
[1759891298596,2.34105466,4484.6,4484.2,0.4672]
[1759891299033,2.22991367,4484.5,4484.2,0.4672]
[1759891299323,2.22996618,4484.4,4484.2,0.4672]
[1759891299497,0.1112,4484.6,4484.1,0.011]
[1759891300322,2.23000172,4484.4,4484.1,0.011]
[1759891300531,2.22995556,4484.4,4484.1,0.471]
[1759891301631,0.1112,4484.6,4484.1,0.471]
[1759891301804,2.22990556,4484.5,4484.1,0.011]
[1759891302127,2.518,4485.8,4484.2,2.71233485]
[1759891302322,0.1112,4485.1,4484.4,0.1112]
[1759891302625,0.1112,4485.1,4484.5,0.48229902]
[1759891302817,0.1112,4485.1,4484.6,0.02229853]
[1759891303014,0.1112,4485.1,4484.7,0.46]
[1759891303420,2.2296879,4485.0,4484.7,0.46]
[1759891303715,0.1112,4485.1,4484.7,0.46]
[1759891304430,2.2296821,4485.0,4484.7,0.46]
[1759891304722,2.3408101,4485.1,4484.8,0.46]
[1759891304929,0.1112,4485.1,4484.4,0.13349952]
[1759891305097,2.005,4485.4,4484.9,0.46]
[1759891305297,2.005,4485.4,4485.0,0.46]
[1759891305899,1.92,4485.5,4484.8,0.1112]
[1759891305900,2.22950717,4485.3,4484.8,0.1112]
[1759891306323,2.22950717,4485.3,4484.8,0.5712]
[1759891306923,2.22950717,4485.3,4484.9,0.46]
[1759891307129,2.22950717,4485.3,4485.0,0.46]
[1759891307332,2.22950717,4485.3,4484.8,0.1112]
[1759891307537,2.22946437,4485.4,4485.1,0.46]
[1759891308228,2.22955498,4485.2,4485.1,0.46]
[1759891308608,2.22955498,4485.2,4484.8,0.1112]
[1759891308815,2.22955498,4485.2,4484.9,0.46]
[1759891309331,2.70650633,4485.4,4484.9,0.46]
[1759891309524,2.22956263,4485.2,4484.9,0.46]
[1759891310406,0.20726484,4485.1,4484.9,0.46]
[1759891310806,2.22956263,4485.2,4484.9,0.46]
[1759891311007,0.20727176,4485.1,4484.9,0.46]
[1759891311526,0.20727176,4485.1,4485.0,0.4479]
[1759891312618,0.68428443,4485.1,4485.0,0.4479]
[1759891312935,0.20727176,4485.1,4485.0,0.4479]
[1759891313241,2.43687645,4485.1,4485.0,0.4479]
[1759891313424,2.91388912,4485.1,4485.0,0.4479]
[1759891313752,2.91388912,4485.1,4484.1,0.011]
[1759891313753,0.68428443,4485.1,4484.1,0.011]
[1759891313931,2.22985941,4484.6,4484.4,0.1112]
[1759891314236,2.43717475,4484.5,4484.4,0.1112]
[1759891314806,0.20727176,4484.5,4484.4,0.1112]
[1759891315529,2.43713786,4484.6,4484.4,0.1112]
[1759891315810,0.20727176,4484.5,4484.4,0.1112]
[1759891316146,2.43712621,4484.6,4484.4,0.1112]
[1759891316325,0.20727176,4484.5,4484.4,0.1112]
[1759891316724,0.20727176,4484.7,4484.4,0.1112]
[1759891317024,0.20727176,4484.6,4484.5,0.47019902]
[1759891317225,0.20727176,4485.0,4484.5,2.98919902]
[1759891317434,0.20727176,4484.9,4484.6,0.5591]
[1759891317639,0.20727176,4484.8,4484.7,0.02229803]
[1759891317952,0.20727176,4485.0,4484.7,0.47019803]
[1759891318164,0.20727176,4485.0,4484.8,0.4479]
[1759891318351,0.20727176,4485.0,4484.9,0.02229704]
[1759891318649,0.20727176,4485.0,4484.9,0.47019704]
[1759891319225,0.002,4485.1,4484.9,0.47019704]
[1759891319437,0.002,4485.1,4485.0,0.4479]
[1759891319756,0.20927176,4485.1,4485.0,0.4479]
[1759891320063,0.002,4485.1,4484.7,0.4479]
[1759891320223,0.20927176,4485.1,4485.0,0.4479]
[1759891320418,2.23160469,4485.1,4485.0,2.9659]
[1759891320631,2.43887645,4485.1,4485.0,2.9659]
[1759891321770,0.20927176,4485.1,4485.0,3.37591975]
[1759891321924,0.002,4485.1,4485.0,5.51667069]
[1759891322119,0.002,4485.1,4485.0,5.49437415]
[1759891323170,0.002,4485.1,4485.0,6.12797415]
[1759891323461,0.002,4485.1,4485.0,20.62797415]
[1759891324624,0.002,4485.1,4485.0,22.54797415]
[1759891326457,0.002,4485.1,4485.0,8.04797415]
[1759891331038,0.002,4485.1,4485.0,5.52997415]
[1759891331364,0.002,4485.1,4485.0,8.04797415]
[1759891331939,0.002,4485.1,4485.0,8.15917415]
[1759891339274,0.002,4485.1,4485.0,5.00757415]
[1759891339668,0.002,4485.1,4485.0,5.60457415]
[1759891340069,0.002,4485.1,4485.0,5.3057544]
[1759891352105,0.002,4485.1,4484.5,0.001]
[1759891352310,0.002,4485.1,4484.6,2.972]
[1759891352465,0.002,4485.1,4484.7,0.455]
[1759891352791,0.002,4485.1,4484.8,2.517]
[1759891353113,2.23163305,4485.1,4484.8,2.517]
[1759891353990,0.002,4485.1,4484.8,2.517]
[1759891354194,0.002,4485.1,4484.9,0.455]
[1759891354412,0.002,4485.1,4485.0,2.517]
[1759891354617,0.002,4485.1,4485.0,2.972]
[1759891355727,2.23160469,4485.1,4485.0,2.517]
[1759891355930,0.002,4485.1,4485.0,2.517]
[1759891359227,2.23160469,4485.1,4485.0,2.517]
[1759891361390,0.002,4485.1,4485.0,2.517]
[1759891362197,0.002,4485.1,4485.0,2.6282]
[1759891363013,0.002,4485.1,4485.0,3.0916]
[1759891364830,0.002,4485.1,4485.0,2.6282]
[1759891365722,0.002,4485.1,4485.0,3.0916]
[1759891366430,0.002,4485.1,4485.0,2.6282]
[1759891367502,2.23160469,4485.1,4485.0,2.6282]
[1759891367702,0.002,4485.1,4485.0,2.6282]
[1759891368147,0.002,4485.1,4485.0,3.0916]
[1759891369034,0.002,4485.1,4485.0,2.6282]
[1759891369035,2.23160469,4485.1,4485.0,2.6282]
[1759891369431,0.002,4485.1,4485.0,2.6282]
[1759891370216,2.23160469,4485.1,4485.0,2.517]
[1759891370414,2.88405529,4485.1,4485.0,2.517]
[1759891370846,2.43985529,4485.1,4485.0,2.517]
[1759891381049,0.2102506,4485.1,4485.0,2.517]
[1759891381255,0.002,4485.1,4485.0,2.9743]
[1759891382257,2.43985529,4485.1,4485.0,2.517]
[1759891382645,0.2102506,4485.1,4485.0,2.517]
[1759891382830,0.69081609,4485.1,4485.0,2.517]
[1759891383157,0.69117374,4485.1,4485.0,2.517]
[1759891383358,0.21060825,4485.1,4485.0,2.517]
[1759891387067,0.002,4485.1,4485.0,2.9743]
[1759891388878,0.21060825,4485.1,4485.0,2.517]
[1759891389168,2.44021294,4485.1,4485.0,2.517]
[1759891390155,0.21060825,4485.1,4485.0,2.517]
[1759891390640,2.44021294,4485.1,4485.0,2.517]
[1759891393570,2.44021294,4485.1,4485.0,2.9743]
[1759891394572,0.21060825,4485.1,4485.0,2.9743]
[1759891394756,0.002,4485.1,4485.0,2.9743]
[1759891394954,0.21060825,4485.1,4485.0,2.9743]
[1759891396086,2.44021294,4485.1,4485.0,2.9743]
[1759891396985,2.44021294,4485.1,4485.0,2.517]
[1759891399692,0.21060825,4485.1,4485.0,2.517]
[1759891399875,0.21060825,4485.1,4485.0,2.9743]
[1759891400796,0.21060825,4485.1,4485.0,2.517]
[1759891400995,0.21060825,4485.1,4485.0,3.0904]
[1759891402269,0.002,4485.1,4485.0,3.0904]
[1759891402489,0.21060825,4485.1,4485.0,3.0904]
[1759891402687,0.002,4485.1,4485.0,3.0904]
[1759891402879,0.21060825,4485.1,4485.0,3.0904]
[1759891403081,0.002,4485.1,4485.0,3.0904]
[1759891403291,0.21060825,4485.1,4485.0,3.0904]
[1759891403485,0.002,4485.1,4485.0,3.0904]
[1759891403685,0.21060825,4485.1,4485.0,3.0904]
[1759891404004,0.002,4485.1,4485.0,3.0904]
[1759891404173,0.21060825,4485.1,4485.0,3.0904]
[1759891404370,0.002,4485.1,4485.0,3.0904]
[1759891404567,0.002,4485.1,4485.0,3.11269654]
[1759891404787,0.21060825,4485.1,4485.0,3.11269654]
[1759891405193,0.002,4485.1,4485.0,3.11269654]
[1759891405499,0.002,4485.1,4485.0,3.0904]
[1759891405997,0.002,4485.1,4485.0,5.85429603]
[1759891413677,0.002,4485.1,4485.0,6.06474899]
[1759891419185,0.002,4485.1,4485.0,6.69834899]
[1759891426180,0.002,4485.1,4485.0,21.19834899]
[1759891429118,0.002,4485.1,4485.0,6.69834899]
[1759891429625,0.002,4485.1,4485.0,21.19834899]
[1759891439440,0.002,4485.1,4485.0,18.68134899]
[1759891439635,0.002,4485.1,4485.0,21.19734899]
[1759891439938,0.002,4485.1,4485.0,3.54774899]
[1759891440103,0.002,4485.1,4485.0,5.3190544]
[1759891440507,0.002,4485.1,4485.0,2.89236014]
[1759891440806,0.002,4485.1,4485.0,5.40836014]
[1759891442230,0.002,4485.1,4485.0,5.3190544]
[1759891443212,0.002,4485.1,4485.0,2.8030544]
[1759891443438,0.002,4485.1,4485.0,5.3190544]
[1759891444227,0.002,4485.1,4485.0,2.8030544]
[1759891444519,0.002,4485.1,4485.0,5.3190544]
[1759891449959,0.002,4485.1,4485.0,0.5734]
[1759891450127,0.002,4485.1,4485.0,3.0894]
[1759891451857,0.002,4485.1,4485.0,2.6272]
[1759891452078,0.002,4485.1,4485.0,3.0857]
[1759891456135,0.002,4485.1,4485.0,5.3153544]
[1759891458354,0.002,4485.1,4485.0,3.0857]
[1759891459175,0.002,4485.1,4485.0,4.8568544]
[1759891459474,0.002,4485.1,4485.0,5.3153544]
[1759891460246,0.002,4485.1,4485.0,2.6272]
[1759891461160,0.002,4485.1,4485.0,3.1007]
[1759891462281,0.002,4485.1,4485.0,5.3303544]
[1759891466463,0.002,4485.1,4485.0,6.09768463]
[1759891468087,0.002,4485.1,4485.0,6.30608683]
[1759891468262,0.002,4485.1,4485.0,6.93968683]
[1759891468464,0.002,4485.1,4485.0,21.43968683]
[1759891469282,0.002,4485.1,4485.0,18.57643243]
[1759891469469,0.002,4485.1,4485.0,14.8196022]
[1759891469675,0.002,4485.1,4485.0,17.1272]
[1759891470060,0.002,4485.1,4485.0,0.1112]
[1759891470261,0.002,4485.1,4485.0,2.6272]
[1759891471891,0.002,4485.1,4485.0,4.8568544]
[1759891472194,0.002,4485.1,4485.0,5.3303544]
[1759891472486,0.002,4485.1,4485.0,3.1007]
[1759891472688,0.002,4485.1,4485.0,2.6272]
[1759891472909,0.002,4485.1,4485.0,0.1112]
[1759891473113,0.4619,4485.1,4485.0,2.516]
[1759891473388,0.67053766,4485.1,4485.0,2.516]
[1759891473691,4.53781051,4485.1,4485.0,2.516]
[1759891473865,7.24811208,4485.1,4485.0,2.516]
[1759891474176,9.16811208,4485.1,4485.0,2.516]
[1759891475782,2.22985327,4484.6,4484.5,0.001]
[1759891476091,2.43849093,4484.6,4484.5,2.518]
[1759891476498,2.89839093,4484.6,4484.5,2.518]
[1759891477377,2.68975327,4484.6,4484.5,2.518]
[1759891481497,2.89780894,4484.6,4484.5,2.518]
[1759891481696,7.24444683,4484.6,4484.5,0.001]
[1759891482312,6.76508179,4484.6,4484.5,0.001]
[1759891482506,36.76508179,4484.6,4484.5,0.001]
[1759891484506,39.16406557,4484.6,4484.5,0.001]
[1759891485281,39.16395125,4484.6,4484.5,0.001]
[1759891485482,35.50795125,4484.6,4484.5,0.001]
[1759891485682,35.50795234,4484.6,4484.5,0.001]
[1759891485882,27.96495234,4484.6,4484.5,0.001]
[1759891486084,27.48608179,4484.6,4484.5,0.001]
[1759891486517,38.68508179,4484.6,4484.5,0.001]
[1759891487614,39.16386363,4484.6,4484.5,0.001]
[1759891487782,22.99986363,4484.6,4484.5,0.001]
[1759891487983,22.53996363,4484.6,4484.5,0.001]
[1759891488184,21.99628179,4484.6,4484.5,0.001]
[1759891488481,21.15028179,4484.6,4484.5,0.001]
[1759891489015,0.20805567,4484.6,4484.5,0.001]
[1759891489311,2.22985327,4484.6,4484.5,0.001]
[1759891489513,2.66995327,4484.6,4484.5,0.001]
[1759891490318,2.87774983,4484.6,4484.5,0.001]
[1759891491213,2.66995327,4484.6,4484.5,0.001]
[1759891494337,2.67195327,4484.6,4484.5,0.001]
[1759891496996,2.23185327,4484.6,4484.5,0.001]
[1759891497397,2.43980628,4484.6,4484.5,0.001]
[1759891497589,2.89530628,4484.6,4484.5,0.001]
[1759891497794,2.91760546,4484.6,4484.5,0.001]
[1759891498213,2.91759939,4484.6,4484.5,0.001]
[1759891499196,3.39727537,4484.6,4484.5,0.001]
[1759891501430,37.26454822,4484.6,4484.5,0.001]
[1759891501603,39.16224904,4484.6,4484.5,0.001]
[1759891501924,39.76184402,4484.6,4484.5,0.001]
[1759891502128,39.16224904,4484.6,4484.5,0.001]
[1759891502303,46.39871108,4484.6,4484.5,0.001]
[1759891502629,47.28664462,4484.6,4484.5,0.001]
[1759891504424,17.28664462,4484.6,4484.5,0.001]
[1759891504634,47.28664462,4484.6,4484.5,0.001]
[1759891505410,49.80364462,4484.6,4484.5,0.001]
[1759891506016,47.28664462,4484.6,4484.5,0.001]
[1759891506222,49.80364462,4484.6,4484.5,0.001]
[1759891506814,47.28664462,4484.6,4484.5,0.001]
[1759891507017,49.00506849,4484.6,4484.5,0.001]
[1759891507347,46.48806849,4484.6,4484.5,0.001]
[1759891507539,49.00506849,4484.6,4484.5,0.001]
[1759891508215,49.80364462,4484.6,4484.5,0.001]
[1759891509137,49.00506849,4484.6,4484.5,0.001]
[1759891510141,46.48806849,4484.6,4484.5,0.001]
[1759891510844,46.48857375,4484.6,4484.5,0.001]
[1759891512251,15.0398009,4484.6,4484.5,0.001]
[1759891512452,3.03644349,4484.6,4484.5,0.001]
[1759891512641,0.69012818,4484.6,4484.5,0.001]
[1759891512839,0.2104522,4484.6,4484.5,0.001]
[1759891513250,0.002,4484.6,4484.5,0.001]
[1759891513632,2.46260465,4484.6,4484.5,0.001]
[1759891515035,2.94228063,4484.6,4484.5,0.001]
[1759891515239,2.46260465,4484.6,4484.5,0.001]
[1759891517658,2.46258599,4484.6,4484.5,0.001]
[1759891518281,2.94226197,4484.6,4484.5,0.001]
[1759891518477,2.46258599,4484.6,4484.5,0.001]
[1759891519243,2.46258599,4484.6,4484.5,0.4678]
[1759891519244,0.21043354,4484.6,4484.5,0.4678]
[1759891519671,0.002,4484.6,4484.5,2.80890299]
[1759891519871,0.002,4484.6,4484.5,1.08289541]
[1759891520261,0.002,4484.6,4484.5,3.3127984]
[1759891521247,0.002,4484.6,4484.5,5.8297984]
[1759891525784,0.002,4484.6,4484.5,3.3127984]
[1759891526081,0.002,4484.6,4484.5,5.8297984]
[1759891534064,0.002,4484.6,4484.5,6.4633984]
[1759891534462,0.002,4484.6,4484.5,8.3833984]
[1759891534788,0.002,4484.6,4484.5,22.8833984]
[1759891534953,0.002,4484.6,4484.5,22.97269378]
[1759891536489,0.002,4484.6,4484.5,22.8833984]
[1759891537262,0.002,4484.6,4484.5,20.9633984]
[1759891540309,0.002,4484.6,4484.5,0.61609541]
[1759891540508,0.002,4484.6,4484.5,0.1122]
[1759891540806,0.002,4484.6,4484.5,2.6292]
[1759891541299,5.78012275,4484.6,4484.5,2.518]
[1759891542264,5.78012275,4484.6,4484.5,0.001]
[1759891542462,35.98820275,4484.6,4484.5,0.001]
[1759891542691,36.46760345,4484.6,4484.5,0.001]
[1759891543173,35.98820275,4484.6,4484.5,0.001]
[1759891543476,38.38758956,4484.6,4484.5,0.001]
[1759891545604,35.28252008,4484.6,4484.5,0.001]
[1759891545809,38.38758956,4484.6,4484.5,0.001]
[1759891546501,38.38751635,4484.6,4484.5,0.001]
[1759891548306,38.38749476,4484.6,4484.5,0.001]
[1759891549294,37.90810795,4484.6,4484.5,0.001]
[1759891549710,35.50910795,4484.6,4484.5,0.001]
[1759891550529,37.90810795,4484.6,4484.5,0.001]
[1759891550901,36.11010795,4484.6,4484.5,0.001]
[1759891551529,36.10810795,4484.6,4484.5,0.001]
[1759891551691,27.45310795,4484.6,4484.5,0.001]
[1759891552023,25.80510795,4484.6,4484.5,0.001]
[1759891552722,26.19310795,4484.6,4484.5,0.001]
[1759891552923,25.76210795,4484.6,4484.5,0.001]
[1759891553321,24.88510795,4484.6,4484.5,0.001]
[1759891553617,23.99510795,4484.6,4484.5,0.001]
[1759891553799,23.10510795,4484.6,4484.5,0.001]
[1759891554517,23.98810795,4484.6,4484.5,0.001]
[1759891555598,37.90810795,4484.6,4484.5,0.001]
[1759891556845,38.38700825,4484.6,4484.5,0.001]
[1759891558954,38.47636547,4484.6,4484.5,0.001]
[1759891560145,39.07675543,4484.6,4484.5,0.001]
[1759891560641,38.47636547,4484.6,4484.5,0.001]
[1759891562252,41.59475543,4484.6,4484.5,0.001]
[1759891562456,35.37129599,4484.6,4484.5,0.001]
[1759891562635,24.25216547,4484.6,4484.5,0.001]
[1759891562958,24.60330825,4484.6,4484.5,0.001]
[1759891563737,38.38430825,4484.6,4484.5,0.001]
[1759891564842,38.50077423,4484.6,4484.5,0.001]
[1759891568376,39.10116419,4484.6,4484.5,0.001]
[1759891569180,38.50077423,4484.6,4484.5,0.001]
[1759891569763,8.50077423,4484.6,4484.5,0.001]
[1759891569953,38.50077423,4484.6,4484.5,0.001]
[1759891570465,39.29935036,4484.6,4484.5,0.001]
[1759891570888,38.50267058,4484.6,4484.5,0.001]
[1759891571191,38.50267058,4484.6,4484.1,0.011]
[1759891571192,37.25512166,4484.2,4484.1,0.011]
[1759891571486,37.25512166,4484.2,4483.6,0.001]
[1759891571487,34.15030086,4483.7,4483.6,0.001]
[1759891571648,41.26316873,4483.7,4483.6,0.001]
[1759891571844,40.90265219,4483.7,4483.6,0.001]
[1759891572451,40.99203416,4483.7,4483.6,0.001]
[1759891573285,41.62563416,4483.7,4483.6,0.001]
[1759891574192,39.10763416,4483.7,4483.6,0.001]
[1759891574404,41.62563416,4483.7,4483.6,0.001]
[1759891574556,39.10763416,4483.7,4483.6,0.001]
[1759891574757,38.47403416,4483.7,4483.6,0.001]
[1759891574956,40.99203416,4483.7,4483.6,0.001]
[1759891575355,41.7918344,4483.7,4483.6,0.001]
[1759891576863,42.4254344,4483.7,4483.6,0.001]
[1759891577393,41.62563416,4483.7,4483.6,0.001]
[1759891577895,41.41764896,4483.7,4483.6,0.001]
[1759891578190,48.53764896,4483.7,4482.0,0.1]
[1759891578405,48.53764896,4483.7,4481.8,0.1112]
[1759891578406,2.23104725,4482.2,4481.8,0.1112]
[1759891578555,2.25334643,4482.2,4481.8,0.1112]
[1759891578758,2.69384643,4482.2,4481.8,0.1112]
[1759891580491,0.02229918,4482.2,4481.8,0.1112]
[1759891580692,2.25329742,4482.3,4481.8,0.1112]
[1759891580897,2.23104725,4482.2,4481.8,0.1112]
[1759891581208,2.70934463,4482.3,4481.8,0.1112]
[1759891581618,0.456,4482.2,4481.8,0.1112]
[1759891581991,0.02229918,4482.3,4481.8,0.1112]
[1759891582310,0.1112,4482.4,4481.8,0.1112]
[1759891582311,0.1112,4482.4,4481.9,0.4671]
[1759891582613,0.1112,4482.4,4481.8,0.13351246]
[1759891582915,0.1112,4482.4,4481.8,0.1112]
[1759891583083,0.5672,4482.4,4481.8,0.1112]
[1759891583285,0.02229918,4482.3,4481.8,0.1112]
[1759891583486,2.2533386,4482.3,4481.8,0.1112]
[1759891583706,2.23104725,4482.2,4481.8,0.1112]
[1759891586725,2.68704725,4482.2,4481.8,0.1112]
[1759891589638,2.68704725,4482.2,4481.5,2.518]
[1759891589639,38.80001971,4482.2,4481.5,2.518]
[1759891589853,39.27952685,4482.2,4481.5,2.518]
[1759891594529,39.27952685,4482.2,4481.1,0.01]
[1759891595233,40.06659727,4482.2,4481.1,0.01]
[1759891596371,40.06659727,4482.2,4482.1,0.011]
[1759891597974,40.06649815,4482.2,4482.1,0.011]
[1759891598355,42.58549815,4482.2,4482.1,0.011]
[1759891599461,40.06649815,4482.2,4482.1,0.011]
[1759891599667,42.58549815,4482.2,4482.1,0.011]
[1759891601074,40.06649815,4482.2,4482.1,0.011]
[1759891601292,42.58549815,4482.2,4482.1,0.011]
[1759891601587,43.38529839,4482.2,4482.1,0.011]
[1759891602083,44.01889839,4482.2,4482.1,1e-08]
[1759891602484,13.21909815,4482.2,4482.1,1e-08]
[1759891602669,43.21909815,4482.2,4482.1,1e-08]
[1759891602869,44.01889839,4482.2,4482.1,1e-08]
[1759891603262,43.21909815,4482.2,4482.1,1e-08]
[1759891604287,43.21909815,4482.2,4481.6,0.001]
[1759891604288,34.15129615,4481.7,4481.6,0.001]
[1759891604584,41.83115334,4481.7,4481.6,0.001]
[1759891604759,41.68797663,4481.7,4481.6,0.001]
[1759891604960,41.79597663,4481.7,4481.6,0.001]
[1759891605873,42.42957663,4481.7,4481.6,0.001]
[1759891607085,39.27697663,4481.7,4481.6,0.001]
[1759891607300,41.79597663,4481.7,4481.6,0.001]
[1759891608684,11.79597663,4481.7,4481.6,0.001]
[1759891608885,41.79597663,4481.7,4481.6,0.001]
[1759891609286,39.27697663,4481.7,4481.6,0.001]
[1759891609477,41.79597663,4481.7,4481.6,0.001]
[1759891610074,35.40331768,4481.7,4481.6,0.001]
[1759891610274,42.39537541,4481.7,4481.6,0.001]
[1759891611206,41.79597663,4481.7,4481.6,0.001]
[1759891612591,41.79592456,4481.7,4481.6,0.001]
[1759891612796,11.79592456,4481.7,4481.6,0.001]
[1759891613108,41.79592456,4481.7,4481.6,0.001]
[1759891613488,37.92226561,4481.7,4481.6,0.001]
[1759891613691,41.79592456,4481.7,4481.6,0.001]
[1759891616300,39.27692456,4481.7,4481.6,0.001]
[1759891616500,41.79592456,4481.7,4481.6,0.001]
[1759891618093,42.3952222,4481.7,4481.6,0.001]
[1759891618424,41.79592456,4481.7,4481.6,0.001]
[1759891619516,37.92226561,4481.7,4481.6,0.001]
[1759891619737,41.79592456,4481.7,4481.6,0.001]
[1759891620896,34.15134594,4481.6,4481.1,0.01]
[1759891621229,36.59332778,4481.2,4481.1,0.01]
[1759891621411,42.03134236,4481.2,4481.1,0.01]
[1759891621606,41.68467353,4481.2,4481.1,0.01]
[1759891622016,42.49327353,4481.2,4481.1,1e-08]
[1759891622200,42.49360711,4481.2,4481.1,1e-08]
[1759891623010,38.02570216,4480.2,4480.1,0.01]
[1759891623213,31.07942755,4480.2,4480.1,0.01]
[1759891623405,21.19942755,4480.2,4480.1,0.01]
[1759891624251,21.19942755,4480.2,4479.1,0.01]
[1759891624252,2.23254152,4479.2,4479.1,0.01]
[1759891624537,8.2567179,4479.2,4479.1,0.01]
[1759891624744,2.12821825,4479.2,4479.1,0.01]
[1759891624897,2.12812712,4479.2,4479.1,0.01]
[1759891625097,1.92,4479.2,4479.1,0.01]
[1759891628104,2.23213054,4480.1,4479.1,0.01]
[1759891628105,2.25459636,4479.7,4479.1,0.01]
[1759891629005,2.23235999,4479.6,4479.1,0.01]
[1759891629250,0.02229918,4479.5,4479.1,0.01]
[1759891630102,0.02229918,4479.8,4479.2,0.4472]
[1759891630302,1.92,4480.0,4479.3,0.02232491]
[1759891630501,0.02229918,4479.9,4479.3,0.02232491]
[1759891630698,0.23019163,4480.1,4479.2,2.6797408]
[1759891630920,0.34139163,4480.1,4479.4,0.1112]
[1759891631120,2.23220109,4479.9,4479.4,0.1112]
[1759891631321,0.02229918,4479.8,4479.4,0.1112]
[1759891631534,2.23230933,4479.7,4479.4,0.1112]
[1759891632138,2.25454355,4479.8,4479.4,0.1112]
[1759891632317,0.02229918,4479.7,4479.4,0.1112]
[1759891633140,2.25460213,4479.7,4479.4,0.1112]
[1759891634631,0.02229918,4479.7,4479.4,0.1112]
[1759891635204,2.23235126,4479.6,4479.4,0.1112]
[1759891635435,4.17459011,4479.8,4479.4,0.1112]
[1759891635610,4.62759011,4479.8,4479.4,0.1112]
[1759891635811,4.15229716,4479.7,4479.4,0.1112]
[1759891636113,0.02229918,4479.6,4479.4,0.1112]
[1759891637426,2.39529918,4479.6,4479.4,0.1112]
[1759891637833,1.94229918,4479.6,4479.4,0.1112]
[1759891638753,41.92,4479.4,4475.1,0.01]
[1759891639048,0.453,4479.5,4477.8,0.4472]
[1759891639049,0.1112,4478.4,4477.8,0.4472]